Cogmind - Beta 15 @@@ ROGUE MODE // 2025.10.01 @ 02:40:36 Player: Figgis Result: Self-destructed Performance ------------- Evolutions (1) 500 Regions Visited (3) 600 Robots Destroyed (42) 210 Value Destroyed (1045) 1045 Prototype IDs (5) 100 Alien Tech Used (0) 0 Bonus (0) 0 TOTAL SCORE: 2455 Bonus ------- None Cogmind --------- Core Integrity 161/400 Matter 287/300 Energy 160/160 System Corruption 0% Temperature Cool (0) Movement Core (100) Ox1 Location -9/Materials Parts ------- > --- POWER (1) -------- Light Nuclear Core > --- PROPULSION (2) --- (None) > --- UTILITY (4) ------ (None) > --- WEAPON (2) ------- (None) > --- INVENTORY (5) ---- Improved Ion Engine Aluminum Leg Shotgun Shotgun Rocket Launcher Peak State ------------ > --- POWER ------------ Ion Engine > --- PROPULSION ------- Aluminum Leg Aluminum Leg > --- UTILITY ---------- Large Storage Unit Hardened Light Armor Plating Decoy Drone Bay > --- WEAPON ----------- Light Cannon Light Cannon > --- INVENTORY -------- Aluminum Leg Hardened Light Armor Plating Autogun Shotgun Shotgun Shotgun Shotgun Rocket Launcher Plasma Cutter [Rating: 23] Favorites ----------- Power Ion Engine Engine Ion Engine Power Core Light Nuclear Core Propulsion Aluminum Leg Leg Aluminum Leg Hover Unit Improved Hover Unit Utility Large Storage Unit Device Decoy Drone Bay Storage Large Storage Unit Protection Hardened Light Armor Plating Weapon Light Cannon Ballistic Gun Shotgun Ballistic Cannon Light Cannon Launcher Rocket Launcher Build | -11 -10 -10 -9 ------- Run | Yrd Mat Min Mat Slots Evolved 2 | . . . 2 Power . | . . . . Propulsion . | . . . . Utility 2 | . . . 2 Weapon . | . . . . Parts Attached 30 | 5 7 3 15 Power 3 | 1 1 . 1 Engine 2 | 1 1 . . Core 1 | . . . 1 Reactor . | . . . . Propulsion 11 | 2 . 1 8 Treads . | . . . . Leg 8 | 2 . 1 5 Wheel . | . . . . Hover 3 | . . . 3 Flight . | . . . . Utility 7 | . 4 . 3 Device 1 | . . . 1 Storage 3 | . 3 . . Processor . | . . . . Hackware . | . . . . Protection 3 | . 1 . 2 Artifact . | . . . . Weapon 9 | 2 2 2 3 Energy Gun . | . . . . Energy Cannon . | . . . . Ballistic Gun 4 | 2 . . 2 Ballistic Cannon 4 | . 2 1 1 Launcher 1 | . . 1 . Special Weapon . | . . . . Impact Weapon . | . . . . Slashing Weapon . | . . . . Piercing Weapon . | . . . . Special Melee Weapon . | . . . . Unidentified Prototypes 1 | . . . 1 Parts Lost 16 | . . 2 14 Power 2 | . . 1 1 Propulsion 7 | . . . 7 Utility 2 | . . . 2 Weapon 5 | . . 1 4 Highest Loss Streak 4 | . . 2 4 To Critical Strikes . | . . . . Average Backups 10 | 1 8 14 10 Power 1 | 1 1 . 1 Propulsion 1 | . . . 2 Utility 1 | . 1 3 . Weapon 6 | . 5 8 5 Tool/Special . | . . . . Unused Backups 24 | . 6 4 14 Power 4 | . . . 4 Propulsion 4 | . . . 4 Utility 2 | . 1 1 . Weapon 13 | . 5 3 5 Tool/Special 1 | . . . 1 Average Slot Usage (%) 82 | . 87 98 72 Engine 8 | . 13 13 3 Core 3 | . . . 7 Leg 23 | . 28 28 18 Storage 11 | . 13 14 8 Protection 9 | . 3 14 10 Ballistic Gun 3 | . 1 . 5 Ballistic Cannon 21 | . 26 27 15 Peak Build Rating 23 | 5 10 12 23 Average Rating 10 | 2 7 10 12 On Entrance 6 | . 4 10 11 Naked Turns . | . . . . Heaviest Build 50 | 2 36 37 50 Greatest Support 20 | 3 20 20 20 Greatest Overweight (x) 5 | . 1 1 5 Average Overweight (x) 1 | . . 1 1 Largest Inventory Capacity 15 | 5 15 15 15 Average Capacity 13 | 5 12 15 13 Most Carried 15 | 4 15 15 15 Average Carried 10 | 2 8 14 10 Final Capacity 15 | 5 15 15 5 Final Carried 15 | 4 15 13 5 Class Distribution -------------------- 100% | Mutant Dominant Class ---------------- Mutant | -10/Materials Mutant | -10/Mines Mutant | -9/Materials Resources | -11 -10 -10 -9 ----------- Run | Yrd Mat Min Mat Matter Collected 1248 | 215 224 149 660 Remotely . | . . . . Salvage Created 1099 | . 126 151 822 Parts 70 | . 11 7 52 Haulers Intercepted . | . . . . Recyclers Shooed 1 | . . . 1 Parts Field Recycled . | . . . . Retrieved Matter . | . . . . Parts Self-Destructed . | . . . . Prevented . | . . . . Kills | -11 -10 -10 -9 ------- Run | Yrd Mat Min Mat Combat Hostiles Destroyed 34 | . 8 2 24 Guns 7 | . . . 7 Cannons 27 | . 8 2 17 Classes Destroyed 7 | . 3 1 3 Worker 1 | . . . 1 Recycler 3 | . . 1 2 Watcher 4 | . 2 . 2 Swarmer 13 | . 6 . 7 Grunt 16 | . 2 2 12 Brawler 1 | . . . 1 Sentry 4 | . . . 4 Best Kill Streak 6 | . 3 3 6 Combat Bots Only 6 | . 3 2 6 Max Kills in Single Turn 2 | . 1 1 2 Gunslinging . | . . . . Exploded . | . . . . Melee . | . . . . Uniques/NPCs Destroyed . | . . . . Combat | -11 -10 -10 -9 -------- Run | Yrd Mat Min Mat Hostile Shots Fired 226 | . 30 24 172 Missed 55 | . 5 5 45 Hits 171 | . 25 19 127 Projectile 171 | . 25 19 127 AOE 18 | . . 18 . Critical Strikes 4 | . . . 4 Damage Taken 2559 | . 218 702 1639 Core 481 | . 65 177 239 Absorbed by Shields . | . . . . Core Remaining (%) 51 | 100 . 3 . Volleys Fired 103 | . 22 16 65 Largest 2 | . 2 2 2 Hottest 63 | . 60 60 63 Shots Fired 190 | . 44 21 125 Gun 28 | . . . 28 Cannon 155 | . 44 14 97 Launcher 7 | . . 7 . Special . | . . . . Kinetic 183 | . 44 14 125 Thermal . | . . . . Explosive 7 | . . 7 . Electromagnetic . | . . . . Robot Hit Streak 13 | . 13 4 11 Robot Miss Streak 6 | . 6 3 3 Penetration Max . | . . . . Secondary Targets . | . . . . Shots Hit Robots 120 | . 25 12 83 Core Hits 58 | . 10 9 39 Critical Kills . | . . . . Critical Parts Destroyed . | . . . . Critical Strikes 7 | . 1 1 5 Blast 7 | . 1 1 5 Melee Attacks . | . . . . Impact . | . . . . Slashing . | . . . . Piercing . | . . . . Sneak Attacks . | . . . . Combat Hostiles . | . . . . Follow-up Attacks . | . . . . Damage Inflicted 2393 | . 439 232 1722 Guns 435 | . . . 435 Cannons 1881 | . 439 159 1283 Explosions 64 | . . 64 . Melee . | . . . . Ramming 13 | . . 9 4 Kinetic 2316 | . 439 159 1718 Thermal . | . . . . Explosive 64 | . . 64 . Electromagnetic . | . . . . Impact . | . . . . Slashing . | . . . . Piercing . | . . . . Highest Corruption . | . . . . Average Corruption . | . . . . Corruption Purged . | . . . . Corruption Blocked . | . . . . Overload Shots . | . . . . Overflow Damage 34 | . 25 7 2 Projectiles 34 | . 25 7 2 Explosions . | . . . . Melee . | . . . . Knockbacks 10 | . 1 2 7 Impact . | . . . . Kinetic 10 | . 1 2 7 Secondary . | . . . . Self-Inflicted Damage 16 | . . 15 1 Shots 1 | . . 1 . Rammed 2 | . . . 2 Targets Rammed 4 | . . 2 2 Kicked 2 | . . 2 . Crushed . | . . . . Highest Temperature 126 | . 30 54 126 Average Temperature 32 | . 21 15 35 Received Heat Transfer 699 | . 30 27 642 Siege Activations . | . . . . Martial Activations . | . . . . Shielding Activations . | . . . . Robots Disrupted . | . . . . Combat Hostiles . | . . . . Robots Corrupted . | . . . . Combat Hostiles . | . . . . Parts Fried . | . . . . Impact Corruptions . | . . . . Robots Melted . | . . . . Combat Hostiles . | . . . . Parts Melted . | . . . . Heat Transferred . | . . . . Parts Sabotaged . | . . . . Parts Stolen . | . . . . Parts Stripped . | . . . . Power Chain Reactions . | . . . . Alert | -11 -10 -10 -9 ------- Run | Yrd Mat Min Mat Maximum Alert Level . | . . . . Low Security (%) 100 | 100 100 100 100 Level 1 . | . . . . Level 2 . | . . . . Level 3 . | . . . . Level 4 . | . . . . Level 5 . | . . . . High Security . | . . . . Max Security . | . . . . Peak Influence 148 | . 105 47 148 Initial . | . . . . Average 31 | . 23 3 49 Influence Increases 1010 | . 280 88 642 Destroy 0b10 Robot/C 680 | . 160 40 480 Destroy 0b10 Robot/NC 40 | . 10 5 25 Destroy Leader 158 | . 34 10 114 Successful Hack 67 | . 60 . 7 Disable Machine 30 | . . 15 15 Destroy Structure 20 | . 1 18 1 Lose Combat Pursuer 15 | . 15 . . Influence Decreases 964 | . 280 88 596 Time Decay 814 | . 280 68 466 Lost Part 150 | . . 20 130 Squads Dispatched 2 | . . . 2 Investigation 1 | . . . 1 Extermination . | . . . . Reinforcement 1 | . . . 1 Assault . | . . . . Garrison . | . . . . Intercept . | . . . . Searches Triggered . | . . . . Construction Impeded . | . . . . Haulers Reinforced . | . . . . Active Scanning Responses . | . . . . Cargo Convoy Interrupts . | . . . . Stealth | -11 -10 -10 -9 --------- Run | Yrd Mat Min Mat Distress Signals 3 | . . . 3 Communications Jammed . | . . . . Distress Signals . | . . . . Times Spotted 61 | . 14 5 42 Peak Tracking Total 7 | . 4 3 7 Tactical Retreats 1 | . 1 . . Traps | -11 -10 -10 -9 ------- Run | Yrd Mat Min Mat Traps Triggered . | . . . . Indirectly . | . . . . Trap Hack Attempts . | . . . . Triggered . | . . . . Disarmed . | . . . . Reprogrammed . | . . . . Reused . | . . . . Traps Extracted . | . . . . Installed . | . . . . Triggered . | . . . . Machines | -11 -10 -10 -9 ---------- Run | Yrd Mat Min Mat Machines Disabled 2 | . . 1 1 Max in Single Turn 1 | . . 1 1 Machines Repaired . | . . . . Machines Dismantled . | . . . . Machines Sabotaged . | . . . . Overloaded Fab Kills . | . . . . Hacking | -11 -10 -10 -9 --------- Run | Yrd Mat Min Mat Machines Accessed 15 | . 7 1 7 Terminals 12 | . 7 . 5 Fabricators . | . . . . Repair Stations 1 | . . . 1 Recycling Units 1 | . . . 1 Scanalyzers . | . . . . Garrison Access . | . . . . Total Hacks 42 | . 20 1 21 Successful 15 | . 10 1 4 Failed 27 | . 10 . 17 Catastrophic 4 | . 3 . 1 Database Lockouts . | . . . . Manual 13 | . 11 . 2 Terminals 34 | . 20 . 14 Fabricators . | . . . . Repair Stations 4 | . . . 4 Recycling Units 3 | . . . 3 Scanalyzers . | . . . . Garrison Access . | . . . . Terminal Hacks 13 | . 9 1 3 Robot Analysis 4 | . 3 . 1 Prototype ID Bank 3 | . 1 . 2 Open Door 1 | . . 1 . Branch Access Points 1 | . 1 . . Terminal Index 1 | . 1 . . Locate Traps 1 | . 1 . . Zone Layout 2 | . 2 . . Fabricator Hacks . | . . . . Repair Station Hacks 1 | . . . 1 Scan Component 1 | . . . 1 Recycling Unit Hacks . | . . . . Scanalyzer . | . . . . Garrison Access Hacks . | . . . . Unauthorized Hacks 1 | . 1 . . Terminals 1 | . 1 . . Botnet 1 | . 1 . . Fabricators . | . . . . Repair Stations . | . . . . Recycling Units . | . . . . Scanalyzers . | . . . . Garrison Access . | . . . . Data Cores Recovered . | . . . . Used . | . . . . Hacking Detections 14 | . 7 . 7 Full Trace Events 4 | . 2 . 2 Feedback Events . | . . . . Feedback Blocked . | . . . . Robot Schematics Acquired . | . . . . Robots Built . | . . . . Authchips . | . . . . Time . | . . . . Total Robot Build Rating . | . . . . Part Schematics Acquired . | . . . . Parts Built . | . . . . Authchips . | . . . . Time . | . . . . Total Part Build Rating . | . . . . Parts Repaired . | . . . . Time . | . . . . Parts Recycled . | . . . . Recycled Matter . | . . . . Retrieved Matter . | . . . . Retrieved Components . | . . . . Parts Scanalyzed . | . . . . Part Schematics Acquired . | . . . . Parts Damaged . | . . . . Bothacking | -11 -10 -10 -9 ------------ Run | Yrd Mat Min Mat Used RIF Installer . | . . . . Robots Hacked . | . . . . Non-combat . | . . . . Combat . | . . . . Robot Hacks Applied . | . . . . Relay Couplers Released . | . . . . Fabnet Peak Effective % . | . . . . Robots Rewired . | . . . . Allies Hacked . | . . . . Hacks Repelled . | . . . . Allies | -11 -10 -10 -9 -------- Run | Yrd Mat Min Mat Total Allies . | . . . . Largest Group . | . . . . Highest-Rated Group . | . . . . Highest-Rated Ally . | . . . . Total Orders . | . . . . Ally Attacks . | . . . . Total Damage . | . . . . Kills . | . . . . Allies Corrupted 1 | . . . 1 Allies Melted . | . . . . Intel | -11 -10 -10 -9 ------- Run | Yrd Mat Min Mat Active Infowar (turns) . | . . . . Robot Analysis Total 4 | . 3 . 1 Derelict Logs Recovered . | . . . . Drone Launches 16 | . . . 16 Drone Recoveries . | . . . . Exploration | -11 -10 -10 -9 ------------- Run | Yrd Mat Min Mat Turns Passed 3855 | 30 1001 903 1921 Spaces Moved 1847 | 33 610 410 794 Core 229 | 33 89 . 107 Treads . | . . . . Legs 1584 | . 521 410 653 Wheels . | . . . . Hover 34 | . . . 34 Flight . | . . . . Fastest Speed 50 | 50 50 190 70 Average Speed 179 | 50 144 190 206 Slowest Speed 330 | 50 190 190 330 Overloaded Moves . | . . . . Propulsion Burnouts . | . . . . Robots Hopped . | . . . . Potential Cave-ins . | . . . . Cave-ins Triggered . | . . . . Exploration Rate (%) 56 | 3 94 73 57 Regions Visited 3 Branch Regions 1 Pre-discovered Areas . | . . . . Known Exits Taken 1 | . 1 . . Unknown Exits Taken 2 | 1 . 1 . Scrap Searched 2 | . . 2 . Spaces Dug . | . . . . Terrain Destroyed 40 | . . 40 . Melee . | . . . . Projectile . | . . . . AOE 40 | . . 40 . Terrain Rammed . | . . . . Walls Destroyed . | . . . . Machines Disabled . | . . . . Actions | -11 -10 -10 -9 --------- Run | Yrd Mat Min Mat Total 2206 | 46 692 513 955 Wait 149 | . 23 73 53 Move 1844 | 32 609 409 794 Hop . | . . . . Pick Up 47 | 8 21 3 15 Fast Attach 6 | . 3 . 3 Attach 22 | 5 4 2 11 Detach 1 | 1 . . . Swap 6 | . . 3 3 Drop 24 | . 10 5 9 Fire 103 | . 22 16 65 Melee . | . . . . Ram 2 | . . . 2 Kick 2 | . . 2 . Crush . | . . . . Escape Stasis . | . . . . Rewire . | . . . . Trap . | . . . . Miscellaneous . | . . . . Route ------- -11/Scrapyard -10/Materials (discovered 4 exits: *Mat x3 / *Min) -10/Mines -9/Materials (discovered 4 exits: [*Mat] / [*Min] / [*Sto x2]) History --------- Turn | Location | Event 20 | -11/Scrapyard | Discovered new exit (range 16) 31 | -11/Scrapyard | Entered Materials 32 | -10/Materials | Met a group of wandering Federalists 74 | -10/Materials | Discovered new exit (range 14) 258 | -10/Materials | Discovered new exit (range 19) 300 | -10/Materials | Build established: Mutant 496 | -10/Materials | Discovered new exit (range 14) 754 | -10/Materials | Identified exit to Mines 836 | -10/Materials | Discovered new exit (range 16) 1032 | -10/Materials | Entered Mines 1082 | -10/Mines | Discovered new exit (range 11) 1083 | -10/Mines | YI-UF0 nonchalantly dropped a Grenade Launcher on the ground 1720 | -10/Mines | Assembled infested the area 1737 | -10/Mines | Found the Drone Emporium 1746 | -10/Mines | Found Prototype Device 1782 | -10/Mines | Core integrity fell below 50% 1787 | -10/Mines | Core integrity fell below 20% 1935 | -10/Mines | Entered Materials 1935 | -9/Materials | Evolved 2 slots: Utility x2 2025 | -9/Materials | Identified Decoy Drone Bay 2088 | -9/Materials | Discovered new exit (range 34) 2097 | -9/Materials | Discovered new exit (range 54) 2097 | -9/Materials | Discovered new exit (range 41) 2145 | -9/Materials | Lost 8 allies 2521 | -9/Materials | Lost 3 parts (1p1n1w) 2785 | -9/Materials | Discovered new exit (range 8) 3831 | -9/Materials | Core integrity fell below 50% 3856 | -9/Materials | Self-destructed Last Messages --------------- 03606_ K-01 Serf cleans the Electrolysis Chamber. 03613_ K-01 Serf cleans the Processing Tank. 03617_ K-01 Serf cleans the Electrolysis Chamber. 03748_ Critical hit (Destroy). 03754_ Imp. Light Cannon destroyed. 03756_ Acquired Imp. Hover Unit. 03760_ Electrolysis Chamber disabled. 03760_ Dropped Imp. Hover Unit. 03770_ K-01 Serf cleans the Terminal. 03770_ K-01 Serf cleans the Electrolysis Chamber. 03782_ Slammed into Y-45 Defender. 03782_ Destabilizing: Core damaged (-20). 03789_ Imp. Hover Unit destroyed. 03820_ Acquired Imp. Hover Unit. 03826_ Slammed into Y-45 Defender. 03830_ Shotgun destroyed. 03839_ Critical hit (Burn: +37). 03842_ Hrd. Light Armor Plating destroyed. 03855_ Aluminum Leg destroyed. 03855_ Imp. Hover Unit destroyed. Map ----- +----------------------------------------------------+ | #?? # """ ###### "" #???????? | | ##????# #?? # " # "" #???????? | | ??????# #?* # / ! !! #???????? | | ??????# #? # = # ! #???????? | | ####### # ][ # = # ######+########+#####?????? | | # # [ # = # #??? ?# #?????? | | %+[+ # # #? """"" # #?????? | | # ###### # ## """"" # """ """ #?????? | | # #? # # ## """"" # """ """ #?????? | | # #? ###### ## ## # """ """ #?????? | | ] # # #????#### ##! """"" # #?????? | | #!# #???????# ## """"" # #?????? | | % + + #???????# ##????????# #?????? | | % #=# #???????# #??????????#########??????? | | #+##### # #???????# ##+#??????????????????????? | | %%* #? ######### #??????????????????????? | | #######?? ## """ # #??????????????????????? | | #?????????### ""R" # #??????????????????????? | | ###???????????# "" " + +??????????????????????? | | ??????????????# # #??????????????????????? | | ??????????????# # #??????????????????????? | | ??????????????# # #?######???????????????? | | ??????????????######## # #???????????????? | | ?????????????????????# # #???????????????? | | ?????????????????????#/## + #???????????????? | | ???????????????????? ##@# !* #???????????????? | | ?????????????????? ## # ]* #???????????????? | | ????????????????? ## #?] #???????????????? | | ??????????????? ?# #?# ####???????????????? | | ####+#+#??????# ] ?# #??##??????????????????? | | #??????#?? ?# #??????????????????????? | | +???????? ?# #??????????????????????? | | #??????? ?# #??????????????????????? | | ####+###??????? ?# #??????????????????????? | | ?????????????????#?##+#?? ???????????????????????? | | ????????????????????????? ???????????????????????? | | ????????????????????????? ???????????????????????? | | ????????????????????????? ???????????????????????? | | ????????????????????????? ???????????????????????? | | ????????????????????????? ???????????????????????? | | ????????????????????????? ???????????????????????? | | ?????????????????????????????????????????????????? | | ?????????????????????????????????????????????????? | | ?????????????????????????????????????????????????? | | ?????????????????????????????????????????????????? | | ?????????????????????????????????????????????????? | | ?????????????????????????????????????????????????? | | ?????????????????????????????????????????????????? | | ?????????????????????????????????????????????????? | | ?????????????????????????????????????????????????? | +----------------------------------------------------+ Best States ------------- Heat Dissipation 28 Energy Generation 14 Energy Capacity 250 Matter Stores 300 Matter Capacity 300 Sight Range 16 Terrain Scan Density 10 Armor Coverage 150 Evasion (%) 55 Item Schematics ----------------- None Robot Schematics ------------------ None Fabricated ------------ Nothing Repaired ---------- Nothing Alien Tech Used ----------------- None Achievements -------------- None Challenges ------------ None Game ------ Seed ShieldTiamatMatterbank Manual? 0 Play Time 00:27:02 Cumulative 198.3 hours Start 2025.10.01 @ 00:49:45 End 2025.10.01 @ 02:40:36 Sessions 3 Manual Loads 0 Difficulty Rogue Special Mode None Game No. 318 Rogue 315 Adventurer 3 Explorer 0 Win Type - Total 1 Types 1/0/0/0/0/0/0/0/0/0 Lore% 65 Gallery% 60 Achievement% 48 Wizard Run 0 Options --------- Layout 0 ASCII 0 Keyboard 0 Movement Mouse Keybinds 0 Fullscreen 2 Font 18/SmallcapsGlow Map View 76x50 Zoom Use 0% Tactical HUD 1 Map Filters NONE Filters NONE Steam 1 RUN: ac533602-1d08-46fc-b53b-10fe1d04bd68